bitfinex/quotes_ETHUSD_20220226
["timestamp","ask_amount","ask_price","bid_price","bid_amount"]
[1645834177641,3.84293062,2790.5,2790.4,9.728]
[1645834178647,3.84293062,2790.9,2790.4,14.228]
[1645834178845,3.84293062,2790.9,2790.5,2.10912389]
[1645834179054,3.84293062,2790.9,2790.6,1.32982389]
[1645834179706,3.84293062,2790.9,2790.8,2.20934989]
[1645834179909,3.84293062,2790.9,2790.8,1.20182389]
[1645834180106,3.84293062,2790.9,2790.8,0.3]
[1645834180305,3.84293062,2790.9,2790.7,0.64994693]
[1645834180506,3.84293062,2790.9,2790.7,0.34994693]
[1645834180908,3.84293062,2790.9,2790.8,0.67645405]
[1645834181307,3.84293062,2790.9,2790.7,1.51092814]
[1645834182109,3.84293062,2790.9,2790.7,1.50627533]
[1645834182411,3.84293062,2790.9,2790.7,1.51092814]
[1645834182612,3.84293062,2790.9,2790.7,2.41275203]
[1645834183040,3.84293062,2790.9,2790.7,0.35459974]
[1645834183334,3.84293062,2790.9,2790.7,0.34994693]
[1645834183838,3.84293062,2790.9,2790.7,0.35459974]
[1645834184241,3.84293062,2790.9,2790.7,1.25642363]
[1645834184437,3.84293062,2790.9,2790.7,1.25177082]
[1645834184639,3.84293062,2790.9,2790.7,1.25642363]
[1645834184839,3.84293062,2790.9,2790.8,0.14976488]
[1645834186543,3.84293062,2790.9,2790.8,0.15790158]
[1645834189386,3.84293062,2790.9,2790.8,9.15790158]
[1645834191238,3.79293062,2790.9,2790.8,9.15790158]
[1645834194988,3.79293062,2790.9,2790.8,8.65790158]
[1645834195592,3.79293062,2790.9,2790.8,8.79647055]
[1645834199142,3.79293062,2790.9,2790.8,9.32088067]
[1645834200043,3.79293062,2790.9,2790.8,9.27088067]
[1645834200247,3.79293062,2790.9,2790.8,9.30995902]
[1645834200748,5.30832999,2790.9,2790.8,8.74647055]
[1645834200947,5.47682247,2790.9,2790.8,8.74647055]
[1645834202389,5.47682247,2790.9,2790.8,7.12996741]
[1645834202790,3.9614231,2790.9,2790.8,7.12996741]
[1645834202990,5.72494401,2790.9,2790.8,7.12996741]
[1645834203192,4.21175408,2790.9,2790.8,7.12996741]
[1645834203392,5.72525695,2790.9,2790.8,7.12996741]
[1645834204193,4.21175408,2790.9,2790.8,7.12996741]
[1645834205839,4.21175408,2790.9,2790.8,7.1646029]
[1645834206241,4.0432616,2790.9,2790.8,7.1646029]
[1645834207646,3.79293062,2790.9,2790.8,7.1646029]
[1645834207849,0.9960795,2791.3,2790.9,5.0]
[1645834208048,0.9960795,2791.3,2791.2,0.01206093]
[1645834208246,0.00275151,2791.8,2791.2,0.01206093]
[1645834208445,1.51769937,2791.9,2790.9,2.25106265]
[1645834208645,1.51769937,2791.9,2790.9,3.15288654]
[1645834208845,1.51769937,2791.9,2791.1,0.00464836]
[1645834209295,1.51769937,2791.9,2791.6,1.15862689]
[1645834209488,1.51494786,2791.9,2791.1,0.00464836]
[1645834209685,1.51494786,2791.9,2790.9,1.2014]
[1645834209686,1.51769937,2791.9,2790.9,1.2014]
[1645834209890,1.51769937,2791.9,2791.1,0.00464857]
[1645834210693,1.51769937,2791.9,2791.3,1.18210151]
[1645834210893,1.51494786,2791.9,2791.3,1.18210151]
[1645834211094,1.51494786,2791.9,2791.3,1.48210151]
[1645834211893,1.51494786,2791.9,2791.3,1.18210151]
[1645834213742,1.51494786,2791.9,2791.1,0.00464851]
[1645834213943,1.51769937,2791.9,2791.1,0.00464851]
[1645834214547,1.51769937,2791.9,2790.9,1.2014]
[1645834214749,1.51769937,2791.9,2791.1,0.00440952]
[1645834214949,1.53729772,2791.9,2791.5,0.10973708]
[1645834215153,1.51494786,2791.8,2791.5,0.10973708]
[1645834215748,0.01959835,2791.9,2791.5,0.10973708]
[1645834217502,1.51491477,2791.8,2791.5,0.10973708]
[1645834218410,0.20770604,2791.9,2791.5,0.10973708]
[1645834218712,0.01959835,2791.9,2791.5,0.10973708]
[1645834220211,0.54316567,2792.0,2791.7,0.0361539]
[1645834220415,1.51489127,2791.9,2791.7,0.0361539]
[1645834220645,0.54316567,2792.0,2791.7,0.0361539]
[1645834220842,1.51484613,2791.9,2791.7,0.0361539]
[1645834221046,0.54316567,2792.0,2791.7,0.0361539]
[1645834221442,1.51489517,2791.9,2791.7,0.0361539]
[1645834222345,0.00260922,2791.4,2791.1,0.00444428]
[1645834222747,1.51750439,2791.4,2791.1,0.00444428]
[1645834222951,0.16757764,2791.3,2791.1,0.00444428]
[1645834223146,1.51489517,2791.2,2791.1,0.00444428]
[1645834223445,1.51489517,2791.2,2791.1,0.00435792]
[1645834223446,0.16757764,2791.2,2791.1,0.00435792]
[1645834224147,0.16757764,2791.2,2790.8,7.08372798]
[1645834224389,1.51531738,2791.1,2791.0,0.00435796]
[1645834224793,1.68289502,2791.1,2791.0,0.00435796]
[1645834225193,0.16757764,2791.1,2791.0,0.00435796]
[1645834225391,0.16757764,2791.1,2790.8,7.08372798]
[1645834225597,0.16757764,2791.1,2790.9,0.00435808]
[1645834226394,0.16757764,2791.1,2790.8,7.08372798]
[1645834226795,0.16757764,2791.1,2790.9,0.0044397]
[1645834227599,0.16757764,2791.1,2790.8,7.08372798]
[1645834228042,0.16757764,2791.1,2790.9,0.0044397]
[1645834228845,0.16757764,2791.1,2790.8,7.08372798]
[1645834229244,0.16757764,2791.1,2790.9,0.0044397]
[1645834229844,0.18711121,2791.1,2791.0,0.03018543]
[1645834230048,0.01953357,2791.1,2791.0,0.03018543]
[1645834233110,1.28485787,2791.1,2791.0,0.01320191]
[1645834233714,0.74123935,2791.2,2791.0,0.01320191]
[1645834233913,0.52680042,2791.2,2791.0,0.01320191]
[1645834234111,0.69414692,2791.2,2791.0,0.01320191]
[1645834235117,0.01953357,2791.1,2791.0,0.0044398]
[1645834236049,0.01953357,2791.1,2790.9,0.06112747]
[1645834236443,0.01953357,2791.1,2790.9,0.06556733]
[1645834236845,0.01953357,2791.1,2790.8,7.11421342]
[1645834236846,0.996,2791.0,2790.8,7.08378075]
[1645834237048,0.1673465,2791.0,2790.8,7.08378075]
[1645834237244,5.0,2790.9,2790.3,1.98768065]
[1645834237448,5.0,2790.7,2790.3,1.98768065]
[1645834237645,0.996,2790.5,2790.3,1.98768065]
[1645834238047,5.996,2790.5,2790.3,1.98768065]
[1645834238247,6.1633465,2790.5,2790.3,1.98768065]
[1645834239388,9.9633465,2790.5,2790.3,1.98768065]
[1645834239587,7.64196477,2790.5,2790.4,7.90469901]
[1645834239790,11.67639469,2790.5,2790.4,7.90469901]
[1645834239988,8.17639469,2790.5,2790.4,7.90469901]
[1645834240190,9.0,2790.4,2789.5,0.06287262]
[1645834240392,5.0,2789.6,2789.5,0.06287262]
[1645834240590,5.0,2789.6,2788.8,0.5]
[1645834240591,1.09623699,2789.5,2788.8,0.5]
[1645834240791,0.996,2789.3,2788.4,0.1434]
[1645834240991,0.996,2789.3,2788.4,1.04522389]
[1645834241195,0.996,2789.3,2788.4,0.90182389]
[1645834241589,0.996,2789.3,2788.4,1.95320196]
[1645834241792,0.996,2789.3,2788.2,2.11032389]
[1645834241992,0.996,2789.3,2788.3,0.90182389]
[1645834242191,1.4633465,2789.3,2788.3,0.90182389]
[1645834242392,0.996,2789.0,2788.7,0.00431608]
[1645834243036,0.996,2788.9,2788.7,0.00431608]
[1645834243237,3.5,2788.8,2788.7,0.00431608]
[1645834243436,5.18343555,2789.0,2787.9,7.45]
[1645834243437,0.18914887,2788.9,2787.9,7.45]
[1645834243636,8.5,2789.0,2787.9,7.45]
[1645834243637,3.5,2789.0,2788.7,0.00431608]
[1645834243841,12.03,2789.0,2788.7,0.00431608]
[1645834244038,6.37639735,2788.8,2788.7,0.00431608]
[1645834244238,4.87639735,2788.8,2788.7,0.00431608]
[1645834244439,7.67639735,2788.8,2787.8,0.1434]
[1645834244645,9.98872208,2788.8,2787.8,0.1434]
[1645834244844,6.48872208,2788.8,2788.6,0.00431619]
[1645834245043,6.48872208,2788.8,2788.6,0.03088912]
[1645834245444,5.0,2788.7,2788.6,0.03088912]
[1645834245648,5.0,2788.7,2788.6,0.02657293]
[1645834245845,7.11278834,2788.7,2788.6,0.02657293]
[1645834246043,7.28011176,2788.7,2788.6,0.03088917]
[1645834246885,7.28011176,2788.7,2788.6,0.02657293]
[1645834247287,7.28011176,2788.7,2788.5,0.03184212]
[1645834247288,7.50911965,2788.7,2788.5,0.03184212]
[1645834247486,7.50911965,2788.7,2787.2,0.00449425]
[1645834247487,0.1828669,2788.4,2787.2,0.00449425]
[1645834247690,0.26158553,2788.3,2787.2,0.00449425]
[1645834247886,0.3,2788.4,2787.2,0.00449425]
[1645834248085,0.22881301,2788.2,2787.2,0.00449425]
[1645834248488,5.22881301,2788.2,2787.2,1.24421867]
[1645834248692,0.22881301,2788.2,2787.4,6.95]
[1645834248895,0.8972,2788.5,2787.4,7.3122]
[1645834249099,2.34265225,2788.8,2787.3,0.00449425]
[1645834249100,2.50411649,2788.8,2787.3,7.45449425]
[1645834249294,5.0,2788.7,2787.4,1.1753]
[1645834249490,5.22423438,2788.7,2787.4,1.1753]
[1645834249892,6.27089404,2788.7,2787.4,1.1753]
[1645834250091,6.27089404,2788.7,2787.4,1.1253]
[1645834250394,6.24114907,2788.7,2787.4,1.1253]
[1645834250659,6.24114907,2788.7,2787.5,0.00449425]
[1645834250660,0.23081024,2788.2,2787.5,0.00449425]
[1645834250859,0.23411572,2788.2,2787.9,0.00457804]
[1645834251059,0.234805,2788.2,2787.9,0.00457804]
[1645834251664,0.234805,2788.2,2787.5,0.00449425]
[1645834252058,0.234805,2788.2,2787.9,0.00457804]
[1645834252858,0.234805,2788.2,2787.5,0.00449425]
[1645834253058,1.234805,2788.2,2787.5,0.00449425]
[1645834253263,1.234805,2788.2,2787.9,0.00465223]
[1645834253660,1.0,2788.2,2787.9,0.00465223]
[1645834253861,0.15940559,2788.3,2787.9,0.00465223]
[1645834254166,0.1433,2788.5,2787.9,0.00465223]
[1645834254167,1.1433,2788.5,2787.9,0.00465223]
[1645834254389,0.1664039,2788.6,2787.9,0.00465223]
[1645834254390,1.0,2788.4,2787.9,0.00465223]
[1645834254592,1.0,2788.3,2787.9,0.00465223]
[1645834255193,0.04972832,2788.1,2787.9,0.00465223]
[1645834255391,0.04972832,2788.1,2787.5,0.00449425]
[1645834255594,0.04972832,2788.1,2788.0,0.00449516]
[1645834256597,0.04972832,2788.1,2787.5,0.00449425]
[1645834256801,0.04972832,2788.1,2787.9,0.00449522]
[1645834257695,0.58435887,2788.1,2787.5,0.00449425]
[1645834258149,0.58435887,2788.1,2787.9,0.00449528]
[1645834258954,0.58435887,2788.1,2787.5,0.00449425]
[1645834259156,1.48167887,2788.1,2787.9,0.00464857]
[1645834259953,1.4986673,2788.1,2788.0,0.07096806]
[1645834263097,0.6013473,2788.1,2788.0,0.07096806]
[1645834265395,0.6013473,2788.1,2787.9,0.07550108]
[1645834266143,0.6013473,2788.1,2787.9,0.07096806]
[1645834266343,0.6013473,2788.1,2787.9,0.07550114]
[1645834267248,0.6013473,2788.1,2787.9,0.07096806]
[1645834267851,0.6013473,2788.1,2787.9,0.07562035]
[1645834268549,0.6013473,2788.1,2788.0,1.35393976]
[1645834268850,0.6013473,2788.1,2787.9,0.07096806]
[1645834268851,0.6013473,2788.1,2787.9,0.07562035]
[1645834269700,0.6013473,2788.1,2787.9,0.07096806]
[1645834270097,0.6013473,2788.1,2787.9,1.14287782]
[1645834270299,0.6013473,2788.1,2787.9,1.50507782]
[1645834270502,0.06671675,2788.1,2787.9,1.50507782]
[1645834270704,0.06553492,2788.1,2787.9,1.50507782]
[1645834271703,0.06553492,2788.1,2787.9,1.14287782]
[1645834273547,0.06553492,2788.1,2787.9,1.13822553]
[1645834273746,0.06553492,2788.1,2787.9,0.00449528]
[1645834274647,0.06553492,2788.1,2787.6,0.00449425]
[1645834274851,0.06553492,2788.1,2787.9,0.00426457]
[1645834275452,0.07834608,2788.1,2788.0,0.07136576]
[1645834276255,0.07834608,2788.1,2787.9,0.00426457]
[1645834276460,0.07834608,2788.1,2787.6,0.00449425]
[1645834276816,5.89759,2787.7,2786.7,1.1958]
[1645834277001,5.89759,2787.7,2787.0,0.00456822]
[1645834277002,1.0,2787.1,2787.0,0.00456822]
[1645834277197,3.928,2787.6,2786.6,1.1802]
[1645834277198,0.19977385,2787.2,2786.7,0.00456822]
[1645834277410,0.16101807,2787.6,2787.0,0.01259581]
[1645834277598,0.1433,2787.5,2787.0,0.01259581]
[1645834277798,0.1433,2787.7,2787.0,0.01259581]
[1645834277997,1.1433,2787.7,2786.8,0.00456822]
[1645834278300,1.1433,2787.7,2786.9,1.11669413]
[1645834278699,2.04074,2787.7,2786.9,1.11669413]
[1645834279102,1.99074,2787.7,2786.9,1.11669413]
[1645834279802,1.89074,2787.7,2786.9,1.11669413]
[1645834280004,1.74744,2787.7,2786.9,1.11669413]
[1645834280657,1.74744,2787.7,2786.8,0.00456822]
[1645834280858,1.74744,2787.7,2787.2,0.00464943]
[1645834281166,1.90946339,2787.7,2787.2,0.00464943]
[1645834281358,1.90946339,2787.7,2786.7,1.19331765]
[1645834282160,1.0,2787.7,2786.7,1.19331765]
[1645834284061,0.95,2787.7,2786.7,1.19331765]
[1645834284501,1.84744,2787.7,2786.7,1.19331765]
[1645834284700,0.89744,2787.7,2786.7,1.19331765]
[1645834284902,0.9496,2787.5,2786.7,1.19331765]
[1645834285110,0.35925596,2787.6,2787.4,0.05992452]
[1645834285304,0.16202339,2787.6,2787.4,0.05992452]
[1645834285503,1.0929,2787.5,2787.4,0.05992452]
[1645834285703,0.9496,2787.5,2787.4,0.05992452]
[1645834285902,0.9496,2787.5,2787.0,0.00464968]
[1645834286106,0.89759,2787.3,2787.0,0.00464968]
[1645834286305,0.9496,2787.1,2787.0,0.00464968]
[1645834286705,0.9496,2787.1,2786.3,1.11750842]
[1645834287005,0.9496,2787.1,2787.0,0.00464962]
[1645834287805,0.9496,2787.1,2786.7,0.00454424]
[1645834287806,0.1433,2787.2,2786.7,0.00454424]
[1645834288043,0.1433,2787.2,2786.6,1.19368088]
[1645834288244,0.28156495,2787.7,2786.7,1.2438]
[1645834288245,0.07630765,2787.7,2786.7,1.2438]
[1645834288555,0.02630765,2787.7,2786.9,0.00464974]
[1645834288951,0.02630765,2787.7,2786.8,0.00454424]
[1645834289350,0.02630765,2787.7,2787.3,1.11190213]
[1645834289851,0.02630765,2787.7,2787.1,0.0045146]
[1645834290051,0.06141001,2787.3,2787.2,0.08069717]
[1645834290654,0.0149039,2787.4,2787.2,0.94289717]
[1645834290850,0.01077758,2787.8,2787.3,1.03736837]
[1645834291052,0.01077758,2787.8,2787.3,1.69956837]
[1645834291452,0.01077758,2787.8,2787.3,1.33736837]
[1645834292716,0.01077758,2787.8,2787.3,1.69956837]
[1645834292915,0.01077758,2787.8,2787.3,1.33736837]
[1645834293512,0.01077758,2787.8,2787.4,0.3622]
[1645834293911,0.01077758,2787.8,2787.3,1.33736837]
[1645834294809,0.01077758,2787.8,2787.3,1.33633281]
[1645834295551,0.01541871,2787.7,2787.5,0.03731192]
[1645834300014,0.01541871,2787.7,2787.4,0.07624936]
[1645834304552,0.01541871,2787.7,2787.4,0.43844936]
[1645834305353,0.01541871,2787.7,2787.6,0.03727416]
[1645834309305,0.01541871,2787.7,2787.6,0.03893257]
[1645834315100,0.01541871,2787.7,2787.6,0.07620673]
[1645834319147,0.0138456,2787.7,2787.6,0.07620673]
[1645834319947,0.01800786,2787.7,2787.6,0.07620673]
[1645834325201,0.96760786,2787.7,2787.6,0.07620673]
[1645834326248,0.96760786,2787.7,2787.1,0.00433857]
[1645834326249,0.20013761,2787.3,2787.1,0.00433857]
[1645834326454,0.20013761,2787.3,2786.8,7.45]
[1645834326651,0.20013761,2787.3,2787.1,0.00433857]
[1645834327451,0.20013761,2787.3,2786.8,7.45]
[1645834327651,0.20013761,2787.3,2787.1,0.00433713]
[1645834328651,0.73050858,2787.3,2786.8,7.45]
[1645834328851,0.73050858,2787.3,2787.1,0.00433713]
[1645834329804,0.73050858,2787.3,2786.7,0.00454424]
[1645834330006,0.73050858,2787.3,2786.6,1.1338]
[1645834330202,0.73050858,2787.3,2787.1,0.00433713]
[1645834331011,0.73050858,2787.3,2786.7,0.00454424]
[1645834331203,0.73050858,2787.3,2787.1,0.00433727]
[1645834331405,1.68010858,2787.3,2787.1,0.00433727]
[1645834332205,1.68010858,2787.3,2786.7,0.00454424]
[1645834332206,0.9496,2787.2,2786.7,0.00454424]
[1645834332407,0.9496,2787.2,2786.5,0.00454424]
[1645834332609,0.9496,2787.2,2786.2,11.85395206]
[1645834332610,0.9496,2787.2,2787.1,0.00433727]
[1645834332808,1.0929,2787.2,2787.1,0.00433727]
[1645834333053,1.0929,2787.2,2786.3,0.00454424]
[1645834333054,1.28838719,2787.1,2786.3,0.00454424]
[1645834333266,1.28838719,2787.1,2785.8,0.5]
[1645834333267,5.0,2786.6,2785.8,0.5]
[1645834333457,1.51734188,2786.5,2785.8,0.5]
[1645834333660,0.5713,2786.4,2785.8,0.5]
[1645834333856,0.9496,2786.0,2785.8,0.5]
[1645834334261,0.18127379,2786.1,2785.0,7.45]
[1645834334467,5.0,2785.8,2784.3,1.41472225]
[1645834334661,0.9496,2785.1,2784.3,1.1598]
[1645834335159,0.9496,2784.8,2784.3,1.1598]
[1645834336158,0.9496,2784.8,2784.4,0.00464989]
[1645834336660,0.9496,2784.7,2784.4,0.00464989]
[1645834336897,0.2001537,2784.8,2784.4,0.00464989]
[1645834337103,8.42825855,2785.8,2784.3,1.1598]
[1645834337104,0.73133395,2785.8,2784.5,7.45]
[1645834337302,0.55025855,2785.8,2784.5,7.45]
[1645834337504,1.0,2785.7,2784.5,8.1122]
[1645834337805,0.55025855,2785.8,2784.7,0.6622]
[1645834338003,0.55025855,2785.8,2784.9,0.3622]
[1645834338203,0.55025855,2785.8,2784.9,0.3]
[1645834338604,0.55025855,2785.8,2785.1,0.00464902]
[1645834339203,0.55025855,2785.8,2785.3,1.39852088]
[1645834339609,0.55025855,2785.8,2785.0,0.00452231]
[1645834339805,0.55025855,2785.8,2785.3,0.0044919]
[1645834340008,1.0,2785.7,2785.3,0.0044919]
[1645834340208,1.0,2785.5,2785.3,0.0044919]
[1645834340652,1.0,2785.5,2785.0,0.00452231]
[1645834340954,1.0,2785.5,2785.3,0.00449195]
[1645834341554,1.0,2785.4,2785.3,0.00449195]
[1645834341756,1.0,2785.4,2785.3,9.195e-05]
[1645834341757,16.258,2785.4,2785.3,9.195e-05]
[1645834341954,13.08295014,2785.4,2784.2,0.00452231]
[1645834342161,16.03,2785.3,2784.0,0.00452231]
[1645834342355,0.5713,2785.2,2784.0,0.00452231]
[1645834342553,0.89852,2784.9,2784.0,0.00452231]
[1645834342755,1.0,2784.2,2783.7,0.00452231]
[1645834342959,1.0,2784.2,2783.5,0.00452231]
[1645834343156,0.58905719,2784.3,2783.2,0.00452231]
[1645834343358,1.0,2783.3,2783.2,0.00452231]
[1645834343557,1.0,2783.3,2783.1,0.98974646]
[1645834343955,0.17774842,2783.4,2783.1,0.98974646]
[1645834344158,0.1433,2783.6,2783.1,0.98974646]
[1645834344594,1.0,2783.2,2783.1,0.99439411]
[1645834345498,0.89886,2783.4,2783.1,0.98974646]
[1645834345699,1.0,2783.2,2783.1,0.98974646]
[1645834346099,1.0,2783.2,2783.1,0.93974646]
[1645834347317,1.0,2783.2,2782.6,0.02312131]
[1645834347504,1.16613005,2783.2,2782.6,0.01859362]
[1645834347899,0.16613005,2783.2,2782.3,0.00452769]
[1645834348143,1.0,2782.7,2782.3,0.00452769]
[1645834348346,1.0,2782.7,2782.0,0.50452769]
[1645834348751,1.0,2782.7,2782.1,4.04615806]
[1645834348945,0.1861283,2783.1,2782.1,0.54615806]
[1645834349146,1.0,2783.2,2782.2,0.00452769]
[1645834349346,1.0,2783.2,2782.3,0.1436]
[1645834349552,0.16787981,2783.3,2782.9,1.10728291]
[1645834349753,0.55133387,2783.6,2782.9,1.10728291]
[1645834349957,0.06226274,2783.2,2782.9,1.10728291]
[1645834350560,0.06226274,2783.2,2782.0,0.5]
[1645834350561,5.0,2783.0,2782.0,0.5]
[1645834350758,5.0,2783.0,2781.4,12.33634655]
[1645834350759,1.62081414,2782.7,2781.4,12.33634655]
[1645834350957,0.428,2782.6,2781.4,12.33634655]
[1645834351158,0.1436,2782.5,2781.4,12.33634655]
[1645834351555,0.30973005,2782.5,2781.4,12.33634655]
[1645834351816,1.79858,2782.4,2781.4,12.33634655]
[1645834352022,1.0,2781.6,2781.4,12.10492994]
[1645834352325,0.20391706,2781.7,2781.4,12.10492994]
[1645834352536,0.89929,2782.0,2781.4,3.71518935]
[1645834352537,0.5718,2781.6,2781.4,3.71518935]
[1645834352740,0.5718,2781.6,2781.3,63.95340045]
[1645834352741,0.81153048,2781.6,2781.3,63.95340045]
[1645834352922,0.81153048,2781.6,2781.3,56.50027271]
[1645834352923,1.11153048,2781.6,2781.3,56.50027271]
[1645834353122,17.30766053,2781.6,2781.3,36.96228444]
[1645834353320,11.03,2781.5,2781.3,29.29148444]
[1645834353519,1.1438,2781.4,2781.3,8.49569676]
[1645834353719,2.03793005,2781.4,2781.3,7.97886653]
[1645834353921,2.20281998,2781.4,2780.7,19.1150741]
[1645834354126,1.7994916,2781.2,2780.7,19.1150741]
[1645834354325,3.27115,2781.1,2780.7,19.1150741]
[1645834354522,1.0,2780.8,2780.7,19.1150741]
[1645834354725,1.1438,2780.8,2780.7,19.1150741]
[1645834354925,1.428,2780.8,2780.7,19.1150741]
[1645834355131,1.0,2780.8,2780.7,19.11359754]
[1645834355325,0.89978,2781.1,2780.7,19.11359754]
[1645834355549,1.06367937,2781.0,2780.7,19.11359754]
[1645834355954,1.0,2780.8,2780.7,19.11359754]
[1645834356553,1.0,2780.8,2780.7,2.4337873]
[1645834356761,1.0,2780.8,2779.1,1.0]
[1645834356762,1.0,2780.8,2778.8,0.1438]
[1645834356763,1.98385,2780.6,2778.8,0.1438]
[1645834356956,1.98385,2780.6,2778.4,2.3054]
[1645834356957,1.80036,2780.1,2778.4,2.3054]
[1645834357156,1.80026,2779.8,2778.4,2.3054]
[1645834357356,1.084,2779.7,2778.4,2.3054]
[1645834357560,1.512,2779.7,2778.5,0.00451222]
[1645834357762,1.084,2778.8,2778.5,0.09841222]
[1645834358157,1.084,2778.8,2778.6,1.3049262]
[1645834358355,1.084,2778.8,2778.7,0.1439]
[1645834358957,1.084,2778.8,2778.6,1.3049262]
[1645834359799,1.084,2778.7,2778.6,1.3049262]
[1645834360198,1.084,2778.7,2778.6,1.6049262]
[1645834360409,1.084,2778.7,2778.6,1.3049262]
[1645834362301,1.084,2778.7,2778.5,0.00464352]
[1645834362302,1.084,2778.7,2778.3,7.45]
[1645834362500,1.084,2778.6,2777.6,7.2292]
[1645834362699,1.084,2778.4,2778.1,0.01722623]
[1645834363144,2.084,2778.2,2778.1,0.01722623]
[1645834363752,2.084,2778.2,2777.7,1.17113152]
[1645834364355,0.20686061,2778.3,2777.7,1.17113152]
[1645834364356,1.084,2778.1,2777.7,1.17113152]
[1645834364852,1.084,2778.1,2777.7,1.47113152]
[1645834365053,1.084,2778.1,2777.7,1.17113152]
[1645834365852,1.084,2778.0,2777.7,1.17113152]
[1645834367607,1.084,2778.0,2777.7,1.1757744]
[1645834368012,1.034,2778.0,2777.7,1.1757744]
[1645834368410,1.034,2778.0,2777.7,1.17113152]
[1645834368608,1.034,2778.0,2777.7,0.9257744]
[1645834369212,2.034,2777.9,2777.7,0.9257744]
[1645834369609,1.034,2777.9,2777.7,0.92113152]
[1645834370012,1.034,2777.9,2777.7,0.92577446]
[1645834370214,0.01836543,2777.9,2777.7,0.92577446]
[1645834370659,0.01836543,2777.9,2777.7,0.92479515]
[1645834371055,0.01836543,2777.9,2777.7,0.92472102]
[1645834371457,1.034,2777.8,2777.7,0.92472102]
[1645834372056,1.034,2777.8,2777.7,1.28235221]
[1645834372259,1.034,2777.8,2777.7,1.22015221]
[1645834372260,1.084,2777.8,2777.7,1.22015221]
[1645834372457,0.54241589,2778.2,2777.7,1.22015221]
[1645834373559,0.54241589,2778.2,2777.8,0.00441194]
[1645834374401,0.54241589,2778.2,2777.7,0.92015221]
[1645834374600,0.54241589,2778.2,2777.9,0.00448842]
[1645834375399,1.54241589,2778.2,2777.9,0.00448842]
[1645834375607,1.54241589,2778.2,2777.7,0.92464209]
[1645834375809,1.54241589,2778.2,2777.9,0.00339855]
[1645834376805,1.54241589,2778.2,2777.7,0.92464209]
[1645834377007,1.54241589,2778.2,2777.9,0.00339855]
[1645834377210,1.0,2778.2,2777.9,0.00339855]
[1645834378081,1.0,2778.2,2777.7,0.92464209]
[1645834378263,0.53834802,2778.9,2777.8,8.2]
[1645834378469,0.53834802,2778.9,2777.9,0.00913727]
[1645834379066,1.0,2778.9,2777.9,0.00913727]
[1645834379267,1.0,2778.9,2777.9,0.00448988]
[1645834379671,1.0,2778.9,2778.3,0.00430948]
[1645834380469,1.0,2778.9,2778.7,1.23201318]
[1645834381990,1.0,2778.9,2778.7,1.23632222]
[1645834382192,0.54201453,2779.1,2778.7,1.23632222]
[1645834382395,0.54201453,2779.1,2778.8,4.5955]
[1645834382593,1.0,2779.1,2778.8,4.5955]
[1645834383193,1.0,2779.1,2778.8,4.59980888]
[1645834383795,0.53032619,2779.2,2778.8,4.59980888]
[1645834383997,1.0,2779.0,2778.8,4.5955]
[1645834384398,1.0,2779.0,2778.8,4.59983163]
[1645834385199,0.53032619,2779.2,2778.8,4.59983163]
[1645834385200,0.53032619,2779.2,2778.8,2.97268173]
[1645834385398,1.0,2778.9,2778.8,2.97268173]
[1645834385660,1.06019254,2778.9,2778.8,2.97701342]
[1645834386461,1.06019254,2778.9,2778.8,2.97268173]
[1645834387963,1.06019254,2778.9,2778.8,4.16215215]
[1645834388363,1.06019254,2778.9,2778.8,2.97268173]
[1645834390999,1.06019254,2778.9,2778.8,4.08835149]
[1645834391600,1.06019254,2778.9,2778.8,2.97268173]
[1645834392600,1.06019254,2778.9,2778.8,4.07027947]
[1645834393246,1.06019254,2778.9,2778.8,2.97268173]
[1645834397000,1.94418,2779.6,2778.9,7.5]
[1645834397206,2.3992438,2780.4,2778.8,4.93937161]
[1645834397207,3.7208502,2780.3,2778.8,4.93937161]
[1645834397402,1.52101158,2780.2,2778.9,1.6017]
[1645834397605,2.35189235,2780.4,2779.0,0.00448988]
[1645834397804,1.66487732,2780.3,2779.0,0.00448988]
[1645834398009,1.0,2780.0,2779.9,1.15317748]
[1645834399312,0.55197235,2780.4,2779.9,1.15317748]
[1645834399508,1.0,2780.5,2779.9,1.15317748]
[1645834400762,0.53758722,2780.6,2779.6,0.00448988]
[1645834400763,1.52085779,2780.4,2779.6,0.00448988]
[1645834400964,1.0,2780.1,2779.1,0.14828988]
[1645834401161,1.0,2780.1,2779.2,0.00448988]
[1645834401364,1.0,2780.1,2779.6,0.01854212]
[1645834401561,0.9100782,2780.1,2779.6,0.01854212]
[1645834401759,0.53758722,2780.6,2780.0,1.01627851]
[1645834401965,1.52084226,2780.5,2780.0,1.01627851]
[1645834402162,2.43044226,2780.5,2779.2,0.00448988]
[1645834402364,0.53758722,2780.6,2779.7,0.00463518]
[1645834402365,0.9096,2779.9,2779.7,0.00463518]
[1645834403161,0.9096,2779.9,2779.2,0.00448988]
[1645834403368,0.9096,2779.9,2779.0,0.36668988]
[1645834403563,0.9096,2779.9,2779.7,0.00463524]
[1645834404406,0.9096,2779.9,2779.1,0.00448988]
[1645834404813,0.9096,2779.9,2779.7,0.00463524]
[1645834405305,0.04814655,2780.1,2779.7,0.00463524]
[1645834405505,0.04814655,2780.1,2779.7,1.15303524]
[1645834405708,0.04814655,2780.1,2779.7,1.4484]
[1645834405910,0.04814655,2780.1,2779.7,1.45278863]
[1645834406910,0.04814655,2780.1,2779.7,1.4484]
[1645834407117,0.04814655,2780.1,2779.8,0.00438851]
[1645834408148,0.04814655,2780.1,2779.7,1.4484]
[1645834408348,0.04814655,2780.1,2779.8,0.00438844]
[1645834409349,0.04814655,2780.1,2779.7,1.4484]
[1645834409548,0.04814655,2780.1,2779.8,0.00438844]
[1645834409952,0.04814655,2780.1,2779.9,0.03491355]
[1645834410152,0.9096,2780.0,2779.9,0.03491355]
[1645834410354,0.9096,2780.0,2779.4,0.02204629]
[1645834410355,0.11790596,2779.7,2779.4,0.01755641]
[1645834410553,0.1439,2779.6,2779.4,0.01755641]
[1645834410951,1.02750596,2779.7,2779.4,0.01769867]
[1645834411356,0.9096,2779.5,2779.4,0.01769867]
[1645834412008,0.9096,2779.5,2779.2,1.18845876]
[1645834412612,0.9096,2779.5,2779.0,1.1816]
[1645834412813,0.11790596,2779.7,2779.0,1.4816]
[1645834413014,0.8592,2779.4,2779.0,1.4816]
[1645834413313,0.11790596,2779.7,2779.0,1.1816]
[1645834413714,0.8592,2779.4,2779.0,1.1816]
[1645834413914,0.1439,2779.6,2779.0,1.1816]